bitfinex/quotes_ETHUSD_20260305
["timestamp","ask_amount","ask_price","bid_price","bid_amount"]
[1772722971637,1.18220078,2114.7,2113.6,0.0011]
[1772722972137,1.18220078,2114.7,2113.8,0.0011]
[1772722972934,1.18197721,2115.1,2113.8,3.1971493]
[1772722973520,1.18197721,2115.1,2113.9,1.18264818]
[1772722973717,4.32021677,2115.1,2113.9,1.18264818]
[1772722973913,1.18197721,2115.1,2113.9,4.37869748]
[1772722974841,1.181937,2115.2,2114.0,3.1960493]
[1772722975041,0.001,2115.5,2114.0,3.1960493]
[1772722975042,1.18184036,2115.4,2114.0,3.1960493]
[1772722975339,4.72807326,2115.5,2113.9,1.18264818]
[1772722975340,1.18275798,2115.5,2114.2,3.1960493]
[1772722975544,0.001,2115.5,2114.4,1.18236852]
[1772722977817,0.001,2115.5,2114.4,4.37841782]
[1772722978322,0.001,2115.5,2114.4,2.32636852]
[1772722978639,0.001,2115.5,2114.5,3.1960493]
[1772722979644,0.001,2115.5,2114.4,1.18236852]
[1772722979947,0.001,2115.5,2114.2,4.72947408]
[1772722979948,3.13923956,2115.5,2114.2,1.18248037]
[1772722980620,0.001,2115.5,2114.2,4.37852967]
[1772722980951,0.001,2115.5,2114.3,3.1960493]
[1772722981865,0.001,2115.5,2114.4,4.37841782]
[1772722982064,2.001,2115.5,2114.2,4.72984173]
[1772722982258,2.001,2115.5,2114.2,1.18248037]
[1772722982259,5.13923956,2115.5,2114.2,1.18248037]
[1772722983251,2.001,2115.5,2114.3,3.1960493]
[1772722983869,2.001,2115.5,2114.4,4.37841782]
[1772722984046,2.001,2115.5,2114.5,3.1960493]
[1772722984249,2.001,2115.5,2114.1,7.0169758]
[1772722984250,2.81659336,2115.4,2114.1,7.0169758]
[1772722984448,2.81659336,2115.4,2113.8,0.0011]
[1772722984449,3.13823956,2115.1,2113.8,0.0011]
[1772722984663,3.13823956,2114.9,2113.8,0.0011]
[1772722984971,3.13823956,2114.9,2113.9,0.0011]
[1772722984972,5.95483292,2114.8,2113.9,0.0011]
[1772722985162,2.81659336,2114.7,2113.9,0.0011]
[1772722985372,3.37516443,2115.2,2113.9,0.0011]
[1772722985373,2.25010962,2115.2,2113.9,0.0011]
[1772722985546,2.81940747,2115.2,2113.9,0.0011]
[1772722985751,8.20775665,2115.2,2113.9,0.0011]
[1772722985953,1.18203309,2115.0,2113.9,0.0011]
[1772722986151,2.81940747,2114.9,2113.9,0.0011]
[1772722986363,5.95764703,2114.9,2113.9,0.0011]
[1772722986578,4.13440747,2114.8,2113.9,0.0011]
[1772722986876,2.81940747,2114.7,2113.9,0.0011]
[1772722987078,1.315,2114.8,2113.9,0.0011]
[1772722987582,1.18203309,2115.0,2113.9,0.0011]
[1772722987882,2.8207556,2114.9,2113.9,1.18374818]
[1772722988047,1.18209382,2114.9,2113.9,4.37979748]
[1772722988248,1.18209382,2114.9,2113.9,5.52579748]
[1772722988581,1.18192133,2115.2,2113.9,5.52579748]
[1772722988773,2.82048984,2115.1,2114.0,3.1960493]
[1772722989150,1.18192133,2115.2,2113.9,1.18374818]
[1772722989151,3.13823956,2115.0,2113.9,0.0011]
[1772722989487,6.25252079,2115.2,2113.9,0.0011]
[1772722989488,3.13823956,2114.6,2113.9,0.0011]
[1772722989673,7.2737294,2114.5,2113.9,0.0011]
[1772722989975,1.18242444,2114.3,2113.6,0.0011]
[1772722990176,2.82048984,2114.2,2113.6,0.0011]
[1772722990856,1.1824082,2114.4,2113.6,0.0011]
[1772722991052,2.8183862,2114.3,2113.6,0.0011]
[1772722991253,2.8183862,2114.3,2113.3,0.0011]
[1772722991254,3.13823956,2114.2,2113.3,0.0011]
[1772722991477,3.13823956,2114.2,2112.6,4.3420493]
[1772722991478,2.8183862,2114.1,2112.7,1.18331992]
[1772722991655,3.13823956,2114.0,2112.7,1.18331992]
[1772722991846,4.1333862,2113.9,2112.7,1.18331992]
[1772722992052,4.00109033,2113.8,2112.7,1.18331992]
[1772722992276,1.18270413,2113.8,2112.7,1.18331992]
[1772722992655,1.18268751,2113.9,2112.8,3.1960493]
[1772722992860,1.18263636,2114.0,2112.8,3.1960493]
[1772722993057,4.72935504,2114.5,2112.8,3.1960493]
[1772722993367,1.1823126,2114.5,2112.8,3.1960493]
[1772722993970,4.72881939,2114.7,2112.9,1.18320791]
[1772722994290,4.72881939,2114.7,2113.1,3.1960493]
[1772722994291,2.81391976,2114.6,2113.1,3.1960493]
[1772722994647,2.81391976,2114.6,2112.9,1.18320791]
[1772722994868,2.81391976,2114.6,2113.0,4.3420493]
[1772722995181,2.81391976,2114.6,2113.1,3.1960493]
[1772722995367,2.4971556,2114.8,2113.1,3.1960493]
[1772722995686,3.13823956,2114.6,2113.1,3.1960493]
[1772722995865,2.81343443,2114.5,2113.1,3.1960493]
[1772722996052,2.81343443,2114.5,2112.8,4.73283165]
[1772722996053,3.13823956,2114.3,2112.6,4.37942523]
[1772722996258,2.81257494,2114.2,2112.7,1.146]
[1772722996777,2.81257494,2114.1,2113.0,0.0011]
[1772722997162,4.32060808,2114.4,2113.0,0.0011]
[1772722997363,2.81198688,2114.3,2113.0,0.0011]
[1772722997755,5.95022644,2114.3,2113.0,0.0011]
[1772722997965,2.81198688,2114.2,2113.0,0.0011]
[1772722998166,2.81198688,2114.2,2113.0,1.18425191]
[1772722998167,3.13823956,2114.0,2113.0,1.18425191]
[1772722998359,2.81198688,2113.9,2113.0,0.0011]
[1772722998573,4.45223956,2114.0,2113.0,0.0011]
[1772722998574,2.81198688,2113.8,2113.0,0.0011]
[1772722998880,4.45223956,2114.0,2113.0,0.0011]
[1772722999084,2.81034884,2113.9,2113.0,0.0011]
[1772722999583,5.80144364,2113.9,2113.0,0.0011]
[1772722999771,5.80144364,2113.8,2113.0,0.0011]
[1772722999973,2.9910948,2113.6,2112.8,0.0011]
[1772723000177,2.25005995,2113.9,2112.8,0.0011]
[1772723000378,7.53808943,2113.8,2112.8,0.0011]
[1772723000682,4.73090166,2113.8,2112.8,0.0011]
[1772723001282,1.18259224,2114.0,2112.8,0.0011]
[1772723001858,2.9910948,2113.8,2112.8,0.0011]
[1772723002057,2.9910948,2113.6,2112.8,0.0011]
[1772723002310,2.9910948,2113.3,2112.5,0.0011]
[1772723002663,2.9910948,2113.1,2111.9,1.18374039]
[1772723003559,2.9910948,2113.1,2111.8,4.73513787]
[1772723003560,2.9910948,2113.1,2111.7,3.04829369]
[1772723003756,2.9910948,2113.1,2110.5,4.22140572]
[1772723003757,2.9910948,2112.9,2111.4,1.18404849]
[1772723003990,4.11101747,2112.8,2111.4,1.18404849]
[1772723004188,1.313,2112.8,2111.4,1.18404849]
[1772723004377,1.18331992,2112.7,2111.5,3.04829369]
[1772723004778,1.18331992,2112.7,2111.4,1.18404849]
[1772723004779,4.17441472,2112.7,2111.4,1.18404849]
[1772723005182,4.73251681,2113.1,2111.5,3.04829369]
[1772723005375,1.313,2113.3,2111.6,0.065536]
[1772723005578,1.313,2113.3,2111.7,3.04829369]
[1772723005579,2.9910948,2113.2,2111.7,3.04829369]
[1772723006075,1.18298808,2113.3,2111.4,1.18404849]
[1772723006076,2.9910948,2113.0,2111.4,1.18404849]
[1772723006399,2.99457622,2112.8,2111.3,0.0011]
[1772723006565,2.79040104,2112.7,2111.3,0.0011]
[1772723006773,2.99457622,2112.5,2111.3,0.0011]
[1772723006969,2.99457622,2112.3,2111.3,0.0011]
[1772723008279,1.18360003,2112.2,2111.3,0.0011]
[1772723008476,2.99457622,2112.1,2111.3,0.0011]
[1772723008676,0.99457622,2112.1,2111.3,0.0011]
[1772723008879,0.99457622,2112.1,2111.0,0.78592872]
[1772723009402,1.18360003,2112.2,2111.0,1.97018875]
[1772723009590,1.18360003,2112.2,2111.5,0.0011]
[1772723010176,4.17817625,2112.2,2111.5,0.0011]
[1772723011102,1.18360003,2112.2,2111.5,0.0011]
[1772723011275,2.99457622,2112.1,2111.5,0.0011]
[1772723011480,1.18360003,2112.2,2111.5,0.0011]
[1772723011691,1.18358821,2112.3,2111.5,0.0011]
[1772723011894,4.73380086,2112.5,2111.5,0.0011]
[1772723013307,4.73380086,2112.5,2111.5,3.04540378]
[1772723013511,4.73380086,2112.5,2111.5,0.0011]
[1772723013693,4.30257622,2112.4,2111.5,0.0011]
[1772723014295,4.30257622,2112.4,2111.3,0.0011]
[1772723014296,2.99457622,2112.3,2111.3,0.0011]
[1772723014622,1.18360003,2112.2,2111.3,0.0011]
[1772723015340,2.99457622,2112.1,2111.3,0.0011]
[1772723015498,1.18360003,2112.2,2111.3,0.0011]
[1772723015499,2.99457622,2111.9,2111.3,0.0011]
[1772723015699,1.308,2111.8,2111.3,0.0011]
[1772723016008,1.308,2111.8,2111.0,0.68702872]
[1772723016199,2.99457622,2111.5,2110.2,0.0011]
[1772723016609,2.99457622,2111.3,2110.2,0.0011]
[1772723016806,2.99457622,2111.1,2110.2,0.0011]
[1772723017009,2.99457622,2110.7,2108.9,4.74180565]
[1772723017227,0.14948499,2110.2,2108.7,1.18556456]
[1772723017520,0.065536,2110.5,2108.7,1.18556456]
[1772723017521,2.99457622,2110.1,2108.7,1.18556456]
[1772723018431,2.99457622,2110.4,2108.7,1.18556456]
[1772723018629,4.1792419,2110.3,2108.6,7.78663474]
[1772723018797,1.18444118,2110.7,2108.7,3.04430378]
[1772723019213,4.1790174,2110.7,2108.9,3.04430378]
[1772723019647,4.1790174,2110.7,2108.9,4.17430378]
[1772723019844,4.1790174,2110.7,2109.0,3.04430378]
[1772723020149,2.99457622,2110.6,2109.0,3.04430378]
[1772723020345,2.99457622,2110.6,2108.7,3.04430378]
[1772723020523,1.18455342,2110.5,2108.9,3.04430378]
[1772723021114,4.17910816,2110.6,2108.9,3.04430378]
[1772723021314,1.18446549,2110.7,2109.1,3.04430378]
[1772723021958,1.18441252,2110.8,2109.1,3.04430378]
[1772723022351,2.99457622,2110.7,2109.1,3.04430378]
[1772723022516,2.99457622,2110.7,2108.9,1.1321]
[1772723022827,2.99457622,2110.5,2109.0,1.18539592]
[1772723023015,2.99457622,2110.5,2109.1,3.04430378]
[1772723023222,4.17907351,2110.6,2109.1,3.04430378]
[1772723023441,2.99457622,2110.5,2109.0,1.18539592]
[1772723024844,2.99457622,2110.5,2108.9,0.0011]
[1772723024845,2.99457622,2110.3,2108.9,0.0011]
[1772723025036,2.99457622,2110.1,2108.9,0.0011]
[1772723026765,1.18483412,2110.0,2108.9,0.0011]
[1772723027072,1.18460955,2110.4,2108.9,3.04540378]
[1772723027274,1.305,2110.7,2108.9,3.04540378]
[1772723027479,1.18449729,2110.6,2108.9,3.04540378]
[1772723028051,4.73759394,2110.8,2108.9,3.04540378]
[1772723028294,7.73217016,2110.8,2108.9,3.04540378]
[1772723028573,2.99457622,2110.7,2109.1,3.04430378]
[1772723028885,6.04254026,2111.1,2109.1,3.04430378]
[1772723028886,4.3751559,2111.1,2109.3,3.04430378]
[1772723029241,3.19093915,2111.0,2109.3,3.04430378]
[1772723030151,3.19093915,2111.0,2109.3,2.54480378]
[1772723030848,1.18432895,2110.9,2109.5,3.00540078]
[1772723031636,3.25647515,2111.4,2109.5,3.00540078]
[1772723031637,4.37504373,2111.4,2109.5,3.00540078]
[1772723031842,4.73656353,2111.3,2109.5,3.00540078]
[1772723032136,3.19093915,2111.2,2109.5,3.00540078]
[1772723032537,3.19093915,2111.0,2109.4,1.18517113]
[1772723032783,3.19093915,2111.0,2109.5,3.00540078]
[1772723033078,1.18432895,2110.9,2109.6,4.19045955]
[1772723033768,1.18432895,2110.9,2109.7,3.00540078]
[1772723034139,4.3752681,2110.9,2109.6,1.18505877]
[1772723034753,4.3752681,2110.9,2109.6,4.19045955]
[1772723035277,0.001,2110.8,2109.6,4.19045955]
[1772723035451,3.19193915,2110.8,2109.6,1.18505877]
[1772723035773,3.19193915,2110.8,2109.4,4.7405533]
[1772723037174,3.19193915,2110.8,2109.3,1.18517113]
[1772723037175,3.19193915,2110.8,2109.3,4.74085192]
[1772723037352,3.19093915,2110.6,2109.3,4.74085192]
[1772723039355,1.18455342,2110.5,2109.2,1.18522732]
[1772723039555,1.18455342,2110.5,2109.2,4.1906281]
[1772723039957,1.18455342,2110.5,2109.3,3.00540078]
[1772723040949,4.73818826,2110.7,2109.3,3.00540078]
[1772723040950,1.18448652,2110.7,2109.3,3.00540078]
[1772723041150,1.18448652,2110.7,2109.2,1.18522732]
[1772723041151,3.19093915,2110.5,2109.2,1.18522732]
[1772723041393,3.19093915,2110.3,2109.1,0.0011]
[1772723041684,3.19093915,2110.1,2109.1,0.0011]
[1772723042096,3.19093915,2109.9,2109.1,0.0011]
[1772723042252,3.19093915,2109.7,2109.1,0.0011]
[1772723042449,3.19093915,2109.7,2108.9,0.0011]
[1772723042654,3.19093915,2109.5,2108.9,0.0011]
[1772723042885,3.19093915,2109.4,2108.9,0.0011]
[1772723043294,1.18522732,2109.3,2108.9,0.0011]
[1772723043784,3.19093915,2109.2,2108.6,0.0011]
[1772723043951,3.19093915,2109.0,2108.4,0.0011]
[1772723044505,2.80282512,2108.9,2108.4,0.0011]
[1772723045011,2.80282512,2108.9,2107.0,5.87388816]
[1772723045012,2.80282512,2108.9,2107.1,1.1864648]
[1772723045013,3.19093915,2108.6,2107.1,1.1864648]
[1772723045323,4.69162156,2108.7,2107.1,3.00540078]
[1772723045324,4.37669485,2108.4,2107.1,3.00540078]
[1772723045457,4.10382512,2108.5,2107.1,3.00540078]
[1772723045458,2.4867065,2108.5,2107.1,3.00540078]
[1772723045659,7.93301396,2108.8,2107.1,3.00540078]
[1772723045660,2.48656456,2108.7,2107.2,3.00540078]
[1772723045865,1.301,2108.7,2107.2,3.00540078]
[1772723046080,4.37623055,2109.2,2107.4,3.00540078]
[1772723046290,4.37623055,2109.2,2107.6,3.00540078]
[1772723046562,4.74113407,2109.4,2107.6,3.00540078]
[1772723046563,1.301,2109.5,2107.6,3.00540078]
[1772723046781,2.48614422,2109.5,2107.8,3.00540078]
[1772723047189,7.30672966,2110.1,2108.3,0.065536]
[1772723047190,1.18483264,2110.1,2108.3,0.065536]
[1772723047378,4.37560483,2110.3,2108.8,3.00540078]
[1772723047562,2.80094928,2110.2,2108.8,3.00540078]
[1772723047761,0.001,2109.9,2108.8,3.00540078]
[1772723049276,1.18494644,2109.8,2108.5,1.18567702]
[1772723049477,4.37588559,2109.8,2108.5,1.18567702]
[1772723049681,1.18494644,2109.8,2108.6,3.00540078]
[1772723050067,4.74078576,2109.9,2108.6,3.00540078]
[1772723050068,1.1859295,2109.9,2108.6,3.00540078]
[1772723050489,0.001,2109.9,2108.6,3.00540078]
[1772723050889,1.18589038,2109.9,2108.6,3.00540078]
[1772723051295,0.001,2109.9,2108.6,3.00540078]
[1772723051485,0.001,2109.9,2108.7,4.19096534]
[1772723051684,0.001,2109.9,2108.7,5.31696534]
[1772723051879,0.001,2109.9,2108.7,4.19096534]
[1772723052422,0.001,2109.9,2108.8,3.00540078]
[1772723052730,0.001,2109.9,2108.7,1.18556456]
[1772723052731,3.19193915,2109.9,2108.7,1.18556456]
[1772723053002,3.19193915,2109.9,2107.9,4.74363569]
[1772723053003,3.19193915,2109.9,2108.2,1.18584574]
[1772723053004,3.19093915,2109.5,2108.2,1.18584574]
[1772723053211,5.99395152,2109.4,2108.2,1.18584574]
[1772723053389,2.80301237,2109.3,2108.2,1.18584574]
[1772723053588,1.18528351,2109.2,2108.2,1.18584574]
[1772723053908,2.48415619,2109.5,2108.3,3.00540078]
[1772723054508,1.18590975,2109.9,2108.3,3.00540078]
[1772723054707,0.001,2109.9,2108.3,3.00540078]
[1772723054907,1.18589773,2109.9,2108.5,3.00540078]
[1772723055108,1.18589773,2109.9,2108.7,3.00540078]
[1772723055615,0.001,2109.9,2108.8,1.18550834]
[1772723055786,3.19193915,2109.9,2108.8,1.18550834]
[1772723055987,3.19193915,2109.9,2108.7,4.74203338]
[1772723055988,5.9924756,2109.8,2108.7,1.18552063]
[1772723056178,3.19093915,2109.8,2108.7,1.18552063]
[1772723056622,0.001,2109.9,2108.7,4.19092141]
[1772723056897,0.001,2109.9,2108.3,1.18578949]
[1772723056898,3.19093915,2109.8,2108.3,1.18578949]
[1772723057183,3.19093915,2109.6,2108.3,1.18578949]
[1772723057560,3.19093915,2109.3,2108.1,1.18586681]
[1772723057760,1.18517113,2109.4,2107.9,1.18601451]
[1772723057761,3.19093915,2109.1,2107.9,1.18601451]
[1772723058181,3.19093915,2109.1,2107.5,4.74486807]
[1772723058667,3.19093915,2109.1,2107.6,3.00540078]
[1772723058857,1.18517113,2109.4,2107.6,3.00540078]
[1772723059067,2.88888078,2109.2,2107.6,3.00540078]
[1772723059451,1.18539592,2109.0,2107.7,1.18612705]
[1772723059698,1.18538368,2109.1,2107.8,3.05416602]
[1772723060055,1.18538368,2109.1,2108.6,0.0011]
[1772723060262,4.07426446,2109.1,2108.4,0.0011]
[1772723061018,2.88888078,2109.0,2108.4,0.0011]
[1772723061519,1.18550834,2108.8,2108.1,0.0011]
[1772723063704,2.88888078,2108.9,2108.1,0.0011]
[1772723064242,4.74203338,2109.0,2108.1,0.0011]
[1772723064500,1.295,2109.2,2108.1,0.0011]
[1772723064702,2.48032688,2109.2,2108.1,3.05526602]
[1772723065006,1.295,2109.2,2108.1,3.05526602]
[1772723065205,1.1852246,2109.4,2108.2,3.05416602]
[1772723065504,2.88888078,2109.3,2108.1,0.0011]
[1772723065707,1.18526913,2109.3,2108.1,3.05526602]
[1772723066007,2.79897303,2109.2,2108.1,0.0011]
[1772723066174,2.88888078,2109.1,2108.1,0.0011]
[1772723066500,1.295,2109.2,2108.1,0.0011]
[1772723066695,1.18526913,2109.3,2108.1,0.0011]
[1772723066994,5.98082442,2109.2,2108.1,0.0011]
[1772723067196,3.18075398,2109.1,2108.1,0.0011]
[1772723067506,2.80055271,2109.0,2108.1,0.0011]
[1772723067713,4.36602311,2109.3,2108.1,0.0011]
[1772723068021,5.98225299,2109.2,2108.1,0.0011]
[1772723068218,2.80149901,2109.1,2108.1,0.0011]
[1772723068825,3.18075398,2109.0,2108.1,0.0011]
[1772723069238,3.18075398,2108.6,2107.3,0.0011]
[1772723069526,3.18075398,2108.4,2107.3,0.0011]
[1772723069827,3.18075398,2108.1,2107.3,0.0011]
[1772723070415,1.18567702,2108.5,2107.3,0.0011]
[1772723070589,1.18567702,2108.5,2107.3,3.05912259]
[1772723070994,3.18075398,2109.7,2107.5,3.05802259]
[1772723071305,3.18075398,2109.5,2107.5,3.05802259]
[1772723071501,4.09565158,2109.4,2107.5,3.05802259]
[1772723071717,3.9868789,2109.3,2107.7,3.05802259]
[1772723071915,5.65995455,2109.4,2107.7,3.05802259]
[1772723072129,2.47920057,2109.4,2107.7,3.05802259]
[1772723072424,3.18075398,2109.3,2108.3,0.0011]
[1772723073093,3.18075398,2109.3,2107.7,2.95759709]
[1772723073324,3.18075398,2108.6,2107.3,0.0011]
[1772723073492,3.18075398,2108.4,2107.3,0.0011]
[1772723073701,1.18590199,2108.1,2107.8,0.0011]
[1772723073897,3.18075398,2108.0,2107.3,0.0011]
[1772723074102,1.294,2107.9,2107.3,0.0011]
[1772723074707,4.47475398,2107.9,2107.3,0.0011]
[1772723075217,1.294,2107.9,2107.3,0.0011]
[1772723075815,1.18607078,2107.8,2107.3,0.0011]
[1772723076012,3.18075398,2107.6,2106.8,0.0011]
[1772723076639,3.18075398,2107.6,2106.2,1.18693973]
[1772723076812,2.21785028,2107.9,2106.3,3.05802259]
[1772723077012,4.36671223,2108.1,2106.3,3.05802259]
[1772723077225,3.18075398,2108.0,2106.3,3.05802259]
[1772723077533,2.5333565,2107.9,2106.3,3.05802259]
[1772723077755,3.18075398,2107.7,2106.2,1.18693973]
[1772723077909,4.36693731,2107.6,2106.2,1.18693973]
[1772723078541,3.18075398,2107.5,2106.1,1.35428036]
[1772723078913,3.18075398,2107.3,2106.1,0.1672934]
[1772723079114,0.065536,2107.2,2106.1,0.1672934]
[1772723079317,3.18075398,2107.0,2106.1,1.35430902]
[1772723079530,0.065536,2107.4,2106.1,1.35430902]
[1772723079531,1.294,2107.1,2106.1,1.35430902]
[1772723079842,1.294,2107.3,2106.1,1.35430902]
[1772723080050,3.18075398,2107.1,2106.1,1.35429974]
[1772723080427,3.18075398,2107.1,2106.1,1.35431952]
[1772723081237,1.1864085,2107.2,2106.1,4.41234211]
[1772723081540,1.1864085,2107.2,2106.1,1.35431952]
[1772723081762,1.18627166,2107.5,2106.2,3.05802259]
[1772723081913,4.36702564,2107.5,2106.1,2.81789266]
[1772723082123,1.18627166,2107.5,2106.2,3.05802259]
[1772723082516,1.25145144,2108.1,2106.2,3.05802259]
[1772723082845,1.294,2108.2,2106.4,3.05802259]
[1772723083263,3.18075398,2108.1,2106.4,3.05802259]
[1772723083854,3.18075398,2108.1,2106.1,5.87591525]
[1772723084068,1.18595825,2108.0,2106.4,3.05802259]
[1772723084226,9.21858699,2108.1,2106.1,0.1672934]
[1772723084227,3.18075398,2107.6,2106.1,0.1672934]
[1772723084429,3.18075398,2107.2,2106.1,0.1672934]
[1772723084732,0.14948499,2107.4,2106.1,0.1672934]
[1772723084733,3.18075398,2107.0,2106.1,0.1672934]
[1772723085546,3.24628998,2106.7,2106.6,0.0011]
[1772723085852,3.24628998,2106.7,2105.7,0.80130215]
[1772723085853,3.18075398,2106.7,2105.7,1.9885111]
[1772723086054,3.18075398,2106.5,2106.4,0.0011]
[1772723086256,1.18674641,2106.6,2105.7,1.98855421]
[1772723086441,1.18657743,2106.9,2106.1,0.0011]
[1772723086642,4.36733141,2106.9,2106.1,0.0011]
[1772723086864,3.18075398,2106.8,2106.1,0.0011]
[1772723087232,1.18657743,2106.9,2106.1,0.0011]
[1772723087854,4.36733141,2106.9,2106.1,0.0011]
[1772723088054,3.18075398,2106.8,2105.7,1.98853349]
[1772723088231,3.18075398,2106.8,2105.7,0.80130215]
[1772723088633,3.18075398,2106.8,2105.7,1.98855512]
[1772723088861,3.18075398,2106.8,2104.7,0.065536]
[1772723088862,0.14948499,2106.3,2104.5,1.18793062]
[1772723089028,3.1187298,2106.1,2104.5,1.18793062]
[1772723089858,3.1187298,2106.1,2103.5,3.03801368]
[1772723089859,3.1187298,2105.7,2103.5,3.03801368]
[1772723090059,2.22860206,2106.3,2103.7,3.03801368]
[1772723090229,2.22860206,2106.3,2103.6,1.18843886]
[1772723090230,3.1187298,2105.9,2103.9,3.03801368]
[1772723091140,3.1187298,2105.8,2103.9,3.03801368]
[1772723091650,3.1187298,2105.6,2103.9,3.03801368]
[1772723092035,4.30609622,2105.5,2104.0,1.18821292]
[1772723092235,5.59909622,2105.5,2104.0,1.18821292]
[1772723092466,1.293,2105.5,2104.1,3.03801368]
[1772723092694,4.74853522,2106.0,2104.1,3.03801368]
[1772723092695,1.293,2106.0,2104.2,3.03801368]
[1772723092972,2.4800877,2106.0,2104.2,3.03801368]
[1772723093134,3.1187298,2105.9,2104.2,3.03801368]
[1772723093466,4.74833808,2106.3,2104.1,2.51265754]
[1772723093467,3.1842658,2106.3,2104.4,3.03801368]
[1772723093650,1.18685909,2106.4,2104.6,3.03801368]
[1772723094043,4.74743638,2106.5,2104.8,3.03801368]
[1772723094366,7.86616618,2106.5,2104.8,3.03801368]
[1772723094670,3.1187298,2106.4,2104.8,3.03801368]
[1772723095033,1.18680275,2106.5,2104.8,3.03801368]
[1772723095268,1.18678706,2106.6,2104.8,3.03801368]
[1772723095638,3.1187298,2106.9,2104.8,3.03801368]
[1772723095639,4.74657267,2106.8,2104.8,3.03801368]
[1772723096159,4.74657267,2106.8,2105.0,3.03801368]
[1772723096349,1.18663375,2106.8,2105.0,3.03801368]
[1772723096550,1.1864648,2107.2,2105.2,3.03801368]
[1772723096771,1.1864648,2107.2,2105.4,3.03801368]
[1772723096968,1.1864648,2107.2,2105.6,3.03801368]
[1772723097340,1.18636706,2107.3,2105.6,3.03801368]
[1772723098085,1.18636706,2107.3,2105.8,1.18719726]
[1772723098237,1.18628114,2107.5,2105.9,3.03801368]
[1772723099166,0.001,2106.7,2105.9,3.03801368]
[1772723100074,0.001,2106.7,2105.6,4.74878905]
[1772723100372,4.30501094,2107.5,2105.7,3.03801368]
[1772723100373,1.18632174,2107.4,2105.7,3.03801368]
[1772723100746,1.18632174,2107.4,2105.5,4.74878905]
[1772723100747,3.1187298,2107.3,2105.5,4.74878905]
[1772723101166,2.78438599,2107.2,2105.5,4.74878905]
[1772723101451,3.1187298,2107.1,2105.5,4.74878905]
[1772723101639,3.1187298,2107.1,2105.3,4.74946568]
[1772723101640,3.1187298,2107.1,2105.3,1.18747921]
[1772723101843,3.1187298,2106.9,2105.3,1.18747921]
[1772723102075,4.4087298,2106.8,2105.4,3.03801368]
[1772723102274,1.18669008,2106.7,2105.5,1.18736642]
[1772723102477,3.71942728,2107.9,2105.7,3.10354968]
[1772723102688,3.1187298,2107.7,2105.7,3.10354968]
[1772723102978,3.1187298,2107.7,2105.9,3.10354968]
[1772723103345,5.91128482,2107.6,2105.9,4.14601368]
[1772723103545,5.91128482,2107.6,2105.9,3.03801368]
[1772723103546,3.1187298,2107.5,2105.9,3.03801368]
[1772723103740,1.289,2107.6,2105.5,5.3333801]
[1772723103741,3.1187298,2107.3,2105.5,5.3333801]
[1772723103967,3.1187298,2107.3,2105.5,4.2253801]
[1772723104173,1.1864648,2107.1,2105.5,4.2253801]
[1772723104681,1.1864648,2107.1,2105.5,1.18736642]
[1772723104682,3.1187298,2106.9,2105.5,1.18736642]
[1772723104883,2.79458398,2106.8,2105.5,1.18736642]
[1772723105994,3.1187298,2106.9,2105.5,1.18736642]
[1772723106300,1.18669008,2106.7,2105.3,4.74991422]
[1772723106504,1.18669008,2106.7,2105.3,3.03801368]
[1772723108288,4.74676033,2106.8,2105.4,2.29442281]
[1772723108497,4.74676033,2106.8,2105.4,1.18742281]
[1772723108702,3.1187298,2106.6,2105.4,1.18742281]
[1772723108987,2.7959902,2106.5,2105.4,1.18742281]
[1772723109195,3.1187298,2106.6,2105.4,1.18742281]
[1772723109351,2.7957666,2106.5,2105.1,1.18759203]
[1772723109548,5.9144964,2106.5,2105.2,3.03801368]
[1772723109747,6.03376033,2106.8,2105.2,3.03801368]
[1772723109748,1.18663375,2106.8,2105.2,3.03801368]
[1772723110396,4.74648936,2106.9,2105.4,3.03801368]
[1772723110397,3.1187298,2106.9,2105.4,3.03801368]
[1772723110892,4.74609883,2107.0,2105.5,3.03801368]
[1772723111277,2.79692415,2106.9,2105.5,3.03911368]
[1772723111467,0.001,2106.7,2105.5,3.03911368]
[1772723112388,0.001,2106.7,2105.7,3.03801368]
[1772723112683,4.74473759,2107.6,2105.7,3.10354968]
[1772723112887,1.18618333,2107.6,2105.7,3.10354968]
[1772723113250,3.1187298,2107.5,2105.9,3.10354968]
[1772723114191,3.1187298,2107.5,2105.9,3.03801368]
[1772723114484,3.1187298,2107.5,2105.5,0.0011]
[1772723114485,3.1187298,2107.1,2105.5,0.0011]
[1772723114671,3.1187298,2106.9,2105.5,0.0011]
[1772723114872,3.1187298,2106.7,2105.5,0.0011]
[1772723115072,3.1187298,2106.9,2105.5,0.0011]
[1772723115275,5.9187341,2106.8,2105.5,0.0011]
[1772723115451,1.285,2107.0,2105.5,0.0011]
[1772723115452,3.1187298,2106.6,2105.5,0.0011]
[1772723115659,5.9187341,2106.5,2105.5,0.0011]
[1772723115851,3.1187298,2106.5,2105.5,0.0011]
[1772723116589,1.18685909,2106.4,2105.5,0.0011]
[1772723116775,4.30558889,2106.4,2105.5,0.0011]
[1772723117004,4.30558889,2106.4,2105.3,0.0011]
[1772723117005,3.1187298,2106.2,2105.3,0.0011]
[1772723117202,3.1187298,2106.0,2105.3,0.0011]
[1772723117404,3.1187298,2105.8,2105.3,0.0011]
[1772723117728,3.1187298,2105.8,2105.0,0.0011]
[1772723117930,3.1187298,2105.8,2105.0,1.18873471]
[1772723118223,3.1187298,2105.8,2105.0,1.18872955]
[1772723118390,1.18725364,2105.7,2105.0,0.0011]
[1772723119387,4.11402968,2105.7,2105.0,0.0011]
[1772723120029,5.3975877,2106.5,2105.0,0.0011]
[1772723120238,2.4708139,2106.5,2105.0,2.98497451]
[1772723120522,1.284,2106.5,2105.2,2.98387451]
[1772723120723,4.74688497,2106.7,2105.2,2.98387451]
[1772723120921,2.47052112,2107.0,2105.2,2.98387451]
[1772723121087,2.92677604,2106.8,2105.2,4.08787451]
[1772723121523,2.92677604,2106.8,2105.2,2.98387451]
[1772723121927,2.92677604,2106.9,2105.2,2.98387451]
[1772723122107,2.92677604,2106.9,2105.2,4.08787451]
[1772723122307,2.80129113,2106.8,2105.2,2.98387451]
[1772723122507,5.72806717,2106.8,2105.2,2.98387451]
[1772723122826,2.47052112,2107.0,2105.4,2.98387451]
[1772723122827,2.47055551,2107.0,2105.4,2.98387451]
[1772723123001,5.7307675,2106.9,2105.4,2.98387451]
[1772723123209,2.92677604,2106.9,2105.4,2.98387451]
[1772723123510,2.47055551,2107.0,2105.4,2.98497451]
[1772723123822,0.001,2106.6,2105.4,2.98497451]
[1772723124026,1.18649262,2107.1,2105.6,2.98387451]
[1772723124191,2.92677604,2107.0,2105.6,2.98387451]
[1772723124413,2.92677604,2107.0,2105.4,0.0011]
[1772723124414,2.92677604,2106.5,2105.4,0.0011]